bitfinex/quotes_BTCUSD_20240101
["timestamp","ask_amount","ask_price","bid_price","bid_amount"]
[1704080699303,0.23321711,42349.0,42348.0,0.01]
[1704080700166,0.23321711,42349.0,42344.0,0.1]
[1704080700374,0.23321711,42349.0,42348.0,0.01]
[1704080701073,0.24021711,42349.0,42343.0,0.0483]
[1704080701327,0.24021711,42349.0,42339.0,0.1]
[1704080701328,0.02809991,42347.0,42339.0,0.04932]
[1704080701543,0.24021711,42349.0,42340.0,0.024792]
[1704080701544,0.02809991,42345.0,42340.0,0.024792]
[1704080701767,0.23321711,42344.0,42340.0,0.024792]
[1704080702235,0.23321711,42344.0,42340.0,0.034792]
[1704080702497,0.02809991,42337.0,42331.0,0.04692]
[1704080702725,0.23321711,42336.0,42332.0,0.04788]
[1704080702953,0.23321711,42336.0,42333.0,0.015788]
[1704080703850,0.23321711,42336.0,42333.0,0.01804418]
[1704080704064,0.23321711,42336.0,42334.0,0.01]
[1704080704280,0.23321711,42336.0,42333.0,0.01804418]
[1704080704281,0.24221711,42336.0,42335.0,0.01]
[1704080704491,0.24221711,42336.0,42335.0,0.02280442]
[1704080704734,0.24221711,42336.0,42335.0,0.07674442]
[1704080704735,0.009,42336.0,42335.0,0.07674442]
[1704080705387,0.2143,42338.0,42337.0,0.01]
[1704080705600,0.44751711,42338.0,42337.0,0.01]
[1704080706281,0.59595902,42338.0,42335.0,0.01280442]
[1704080706504,0.23321711,42337.0,42336.0,0.01892286]
[1704080706728,0.23321711,42337.0,42333.0,0.01225618]
[1704080706729,0.23321711,42337.0,42333.0,0.00225618]
[1704080707161,0.36274191,42338.0,42333.0,0.00225618]
[1704080707162,0.50053291,42334.0,42333.0,0.00225618]
[1704080707377,0.73375002,42334.0,42333.0,0.00225618]
[1704080707624,0.70565011,42334.0,42333.0,0.00225618]
[1704080708716,0.70865011,42334.0,42333.0,0.00225618]
[1704080708977,0.70565011,42334.0,42333.0,0.00225618]
[1704080709190,0.73375002,42334.0,42333.0,0.00225618]
[1704080709639,0.74575002,42334.0,42333.0,0.00225618]
[1704080710283,0.75675002,42334.0,42333.0,0.00225618]
[1704080711401,0.73375002,42334.0,42333.0,0.00225618]
[1704080711850,0.02809991,42330.0,42327.0,0.01]
[1704080712069,0.26131702,42329.0,42323.0,0.472553]
[1704080712276,0.02809991,42326.0,42317.0,0.1]
[1704080712504,0.23321711,42325.0,42317.0,0.572621]
[1704080712756,0.45031711,42325.0,42319.0,0.1]
[1704080712981,0.45031711,42325.0,42323.0,0.01]
[1704080713200,0.50057691,42331.0,42324.0,0.11]
[1704080713418,0.009,42329.0,42324.0,0.11]
[1704080713636,0.23321711,42328.0,42325.0,0.07535001]
[1704080714080,0.009,42329.0,42325.0,0.07535001]
[1704080714299,0.24221711,42329.0,42328.0,0.01]
[1704080714519,0.23321711,42329.0,42328.0,0.029609]
[1704080714757,0.23321711,42329.0,42328.0,0.019609]
[1704080714994,0.02809991,42327.0,42325.0,0.01]
[1704080715213,0.23321711,42326.0,42325.0,0.01]
[1704080715435,0.23321711,42326.0,42324.0,0.01]
[1704080716499,0.24121711,42326.0,42324.0,0.01]
[1704080716800,0.24121711,42326.0,42325.0,0.01]
[1704080717875,0.24721711,42326.0,42325.0,0.01]
[1704080718087,0.23321711,42326.0,42325.0,0.01]
[1704080718512,0.24721711,42326.0,42325.0,0.01]
[1704080718941,0.23921711,42326.0,42324.0,0.01]
[1704080719150,0.24496093,42326.0,42324.0,0.01]
[1704080719571,0.23896093,42326.0,42324.0,0.01]
[1704080719780,0.24496093,42326.0,42325.0,0.01]
[1704080720213,0.23896093,42326.0,42325.0,0.01]
[1704080720640,0.24296093,42326.0,42325.0,0.01]
[1704080720822,0.23096093,42326.0,42325.0,0.01]
[1704080721030,0.23896093,42326.0,42325.0,0.01]
[1704080721241,0.24496093,42326.0,42325.0,0.01]
[1704080721448,0.23696093,42326.0,42325.0,0.01]
[1704080721865,0.24496093,42326.0,42325.0,0.01]
[1704080724106,0.24496093,42326.0,42324.0,0.01]
[1704080725087,0.24496093,42326.0,42325.0,0.01]
[1704080725591,0.23696093,42326.0,42325.0,0.01]
[1704080726235,0.23096093,42326.0,42325.0,0.01]
[1704080726687,0.23696093,42326.0,42325.0,0.01]
[1704080726912,0.23896093,42326.0,42325.0,0.01]
[1704080727134,0.24496093,42326.0,42325.0,0.01]
[1704080727348,0.23696093,42326.0,42325.0,0.01]
[1704080727805,0.24496093,42326.0,42325.0,0.01]
[1704080728030,0.24496093,42326.0,42324.0,0.01]
[1704080728295,0.17726082,42325.0,42324.0,0.01]
[1704080728512,0.43857784,42325.0,42317.0,0.1]
[1704080728748,0.23321711,42324.0,42323.0,0.01]
[1704080728976,0.23321711,42324.0,42319.0,0.01]
[1704080728977,0.45431711,42324.0,42319.0,0.01]
[1704080729196,0.45431711,42324.0,42320.0,0.012876]
[1704080729419,0.48241702,42324.0,42316.0,0.760226]
[1704080729665,0.02809991,42323.0,42316.0,0.1]
[1704080729882,0.45431711,42324.0,42318.0,0.01]
[1704080729883,0.26131702,42322.0,42318.0,0.01]
[1704080730108,0.26131702,42322.0,42317.0,0.01]
[1704080730372,0.26131702,42322.0,42314.0,0.572653]
[1704080730592,0.02809991,42320.0,42314.0,0.1]
[1704080730866,0.23321711,42319.0,42314.0,0.1]
[1704080731302,0.45151711,42319.0,42315.0,0.01]
[1704080731531,0.45151711,42319.0,42311.0,0.472688]
[1704080731532,0.02809991,42318.0,42316.0,0.02819001]
[1704080731747,0.23321711,42317.0,42312.0,0.1]
[1704080732215,0.23321711,42317.0,42311.0,0.472688]
[1704080732443,0.38066982,42319.0,42303.0,0.1]
[1704080732444,0.02809991,42309.0,42303.0,0.1]
[1704080732676,0.472667,42313.0,42304.0,0.01]
[1704080732677,0.23321711,42308.0,42304.0,0.01]
[1704080732917,0.50076691,42313.0,42304.0,0.01]
[1704080732918,0.23321711,42312.0,42306.0,0.1]
[1704080733130,0.23321711,42312.0,42309.0,0.01]
[1704080733579,0.23321711,42312.0,42310.0,0.01]
[1704080733816,0.2151,42316.0,42311.0,0.01]
[1704080734024,0.23321711,42315.0,42312.0,0.01]
[1704080734235,0.1,42326.0,42312.0,0.01]
[1704080734236,0.02809991,42321.0,42314.0,0.1]
[1704080734450,0.23321711,42320.0,42314.0,0.1]
[1704080734661,0.39749996,42320.0,42314.0,0.1]
[1704080735098,0.23321711,42320.0,42314.0,0.1]
[1704080735311,0.23321711,42320.0,42314.0,0.11]
[1704080735312,0.011,42315.0,42314.0,0.11]
[1704080735768,0.011,42315.0,42314.0,0.15626]
[1704080736235,0.011,42315.0,42314.0,0.01]
[1704080736463,0.23321711,42320.0,42316.0,0.01]
[1704080736685,0.25121711,42320.0,42316.0,0.01]
[1704080736916,0.1434667,42318.0,42316.0,0.01]
[1704080737132,0.23321711,42317.0,42316.0,0.01]
[1704080737588,0.23321711,42317.0,42315.0,0.01]
[1704080738026,0.23321711,42317.0,42314.0,0.01]
[1704080738246,0.24621711,42317.0,42314.0,0.01]
[1704080738469,0.24621711,42317.0,42312.0,0.1]
[1704080738470,0.24621711,42317.0,42315.0,0.01]
[1704080739125,0.25821711,42317.0,42315.0,0.01]
[1704080739377,0.24621711,42317.0,42315.0,0.01]
[1704080739851,0.012,42317.0,42316.0,0.05934]
[1704080740067,0.012,42317.0,42316.0,0.34124009]
[1704080740279,0.025,42317.0,42316.0,0.46406009]
[1704080740501,0.025,42317.0,42316.0,0.90191869]
[1704080740737,0.012,42317.0,42316.0,0.90191869]
[1704080740948,0.025,42317.0,42316.0,0.90191869]
[1704080741412,0.012,42317.0,42316.0,1.20816597]
[1704080741632,0.2167,42326.0,42323.0,0.01]
[1704080741864,0.23321711,42325.0,42323.0,0.01]
[1704080743428,0.006,42325.0,42323.0,0.01]
[1704080743649,0.006,42325.0,42324.0,0.02819001]
[1704080744307,0.014,42325.0,42323.0,0.01]
[1704080744530,0.24121711,42325.0,42323.0,0.01]
[1704080744956,0.24121711,42325.0,42319.0,0.01]
[1704080744957,0.23321711,42324.0,42319.0,0.01]
[1704080745399,0.46081711,42324.0,42319.0,0.01]
[1704080745603,0.46081711,42324.0,42323.0,0.01]
[1704080745881,0.46081711,42324.0,42322.0,0.01]
[1704080746339,0.46081711,42324.0,42320.0,0.02819001]
[1704080746998,0.46081711,42324.0,42317.0,0.1]
[1704080746999,0.02809991,42318.0,42317.0,0.05202]
[1704080747204,0.02809991,42318.0,42311.0,0.1]
[1704080747205,0.26131702,42318.0,42311.0,0.1]
[1704080747412,0.23321711,42317.0,42315.0,0.01]
[1704080748474,0.23821711,42317.0,42315.0,0.01]
[1704080749975,0.24421711,42317.0,42315.0,0.01]
[1704080751453,0.23821711,42317.0,42315.0,0.01]
[1704080751871,0.23321711,42317.0,42315.0,0.01]
[1704080752517,0.2276,42320.0,42316.0,0.05154]
[1704080752771,0.025,42317.0,42316.0,0.05154]
[1704080752990,0.013,42317.0,42316.0,0.05154]
[1704080753196,0.23321711,42319.0,42316.0,0.05154]
[1704080753625,0.012,42317.0,42316.0,0.05154]
[1704080753844,0.012,42317.0,42316.0,0.15154]
[1704080754099,0.2086,42323.0,42319.0,0.1]
[1704080754309,0.02809991,42326.0,42321.0,0.01]
[1704080754524,0.23321711,42325.0,42321.0,0.01]
[1704080755174,0.26131702,42325.0,42319.0,0.01]
[1704080755425,0.26131702,42325.0,42316.0,0.398971]
[1704080755426,0.03409991,42323.0,42321.0,0.01]
[1704080755638,0.23321711,42322.0,42319.0,0.01]
[1704080756093,0.23321711,42322.0,42315.0,0.14614]
[1704080756301,0.2086,42321.0,42317.0,0.01]
[1704080756512,0.44181711,42321.0,42315.0,0.14602]
[1704080756736,0.44181711,42321.0,42319.0,0.01]
[1704080757620,0.45281711,42321.0,42319.0,0.01]
[1704080758508,0.46181711,42321.0,42319.0,0.01]
[1704080758723,0.23321711,42320.0,42313.0,0.15274]
[1704080759407,0.23321711,42320.0,42313.0,0.1]
[1704080759617,0.26131702,42320.0,42318.0,0.01]
[1704080759823,0.26131702,42320.0,42313.0,0.4]
[1704080760031,0.26131702,42320.0,42316.0,0.01]
[1704080760240,0.26131702,42320.0,42317.0,0.01]
[1704080760453,0.26131702,42320.0,42313.0,0.4]
[1704080760454,0.27031702,42320.0,42319.0,0.01]
[1704080760671,0.27031702,42320.0,42315.0,0.01]
[1704080760878,0.26931702,42320.0,42315.0,0.01]
[1704080761092,0.26131702,42320.0,42315.0,0.01]
[1704080761300,0.26131702,42320.0,42316.0,0.01]
[1704080761511,0.26131702,42320.0,42317.0,0.01]
[1704080761512,0.26931702,42320.0,42317.0,0.01]
[1704080761726,0.26131702,42320.0,42317.0,0.01]
[1704080761956,0.26931702,42320.0,42317.0,0.01]
[1704080762163,0.27031702,42320.0,42317.0,0.01]
[1704080762602,0.26931702,42320.0,42317.0,0.01]
[1704080763030,0.27831702,42320.0,42317.0,0.01]
[1704080764121,0.27031702,42320.0,42317.0,0.01]
[1704080764343,0.02809991,42318.0,42311.0,0.11]
[1704080764577,0.23321711,42317.0,42315.0,0.01]
[1704080766107,0.23321711,42317.0,42306.0,0.056511]
[1704080766108,0.02809991,42312.0,42306.0,0.056511]
[1704080766353,0.23321711,42311.0,42307.0,0.02412775]
[1704080766577,0.23321711,42311.0,42303.0,0.3]
[1704080766578,0.44611711,42311.0,42303.0,0.3]
[1704080767476,0.47421702,42311.0,42303.0,0.31]
[1704080767710,0.47421702,42311.0,42303.0,0.3]
[1704080767939,0.47421702,42311.0,42302.0,0.3]
[1704080767940,0.02809991,42310.0,42302.0,0.3]
[1704080768197,0.02809991,42308.0,42302.0,0.3]
[1704080768468,0.02809991,42308.0,42301.0,0.21466089]
[1704080768469,0.23321711,42307.0,42301.0,0.21466089]
[1704080769374,0.23321711,42307.0,42301.0,0.11466089]
[1704080769590,0.02574478,42303.0,42301.0,0.11466089]
[1704080769813,0.23321711,42302.0,42301.0,0.11466089]
[1704080770476,0.25896189,42302.0,42301.0,0.11466089]
[1704080772262,0.41483762,42302.0,42301.0,0.11466089]
[1704080772451,0.43183762,42302.0,42301.0,0.11466089]
[1704080772718,0.43283762,42302.0,42301.0,0.11466089]
[1704080772932,0.51751762,42302.0,42301.0,0.11466089]
[1704080773147,0.79951762,42302.0,42301.0,0.11466089]
[1704080773364,0.90551762,42302.0,42301.0,0.11466089]
[1704080773590,1.39630762,42302.0,42301.0,0.11466089]
[1704080773800,1.37938762,42302.0,42301.0,0.11466089]
[1704080774244,0.74975189,42302.0,42301.0,0.11466089]
[1704080774696,0.27696189,42302.0,42301.0,0.11466089]
[1704080775328,0.25121711,42302.0,42301.0,0.11466089]
[1704080775558,0.25121711,42302.0,42301.0,0.19872089]
[1704080775559,0.018,42302.0,42301.0,0.19872089]
[1704080775774,0.036,42302.0,42301.0,0.20872089]
[1704080775990,0.018,42302.0,42301.0,0.20872089]
[1704080776213,0.018,42302.0,42301.0,0.17176089]
[1704080776424,0.018,42302.0,42301.0,0.16578289]
[1704080776425,0.035,42302.0,42301.0,0.16578289]
[1704080776648,0.018,42302.0,42301.0,0.16776289]
[1704080777078,0.018,42302.0,42301.0,0.29698289]
[1704080777523,0.19740718,42309.0,42301.0,0.26758289]
[1704080777736,0.2201,42312.0,42301.0,0.26758289]
[1704080777737,0.005,42302.0,42301.0,0.26758289]
[1704080777963,0.008,42302.0,42301.0,0.21868289]
[1704080778189,0.008,42302.0,42301.0,0.28780289]
[1704080778418,0.003,42302.0,42301.0,0.28780289]
[1704080779553,0.003,42302.0,42301.0,0.46205811]
[1704080779793,0.003,42302.0,42301.0,0.59477811]
[1704080780012,0.003,42302.0,42301.0,0.96666011]
[1704080780518,0.008,42302.0,42301.0,0.72314011]
[1704080780972,0.003,42302.0,42300.0,0.17378356]
[1704080781200,0.003,42302.0,42300.0,0.00084545]
[1704080781687,0.005,42302.0,42300.0,0.00084545]
[1704080781918,0.00131711,42304.0,42300.0,0.00084545]
[1704080782143,0.002,42302.0,42300.0,0.04638545]
[1704080782358,0.005,42302.0,42301.0,0.17293811]
[1704080782788,0.005,42302.0,42301.0,0.24985811]
[1704080782990,0.003,42302.0,42301.0,0.83144011]
[1704080783206,0.003,42302.0,42301.0,0.39265811]
[1704080783423,0.003,42302.0,42301.0,0.86546011]
[1704080783840,0.2101,42314.0,42305.0,0.17293811]
[1704080784064,0.2101,42314.0,42308.0,0.17293811]
[1704080784065,0.23321711,42314.0,42308.0,0.17293811]
[1704080784484,0.23321711,42314.0,42308.0,0.22327811]
[1704080784697,0.00131711,42310.0,42309.0,0.04668]
[1704080784914,0.00131711,42310.0,42306.0,0.01729381]
[1704080784915,0.23453422,42310.0,42306.0,0.01729381]
[1704080785133,0.23321711,42309.0,42307.0,0.05172]
[1704080785355,0.23321711,42310.0,42307.0,0.05172]
[1704080785792,0.011,42310.0,42308.0,0.17293811]
[1704080786006,0.02,42310.0,42309.0,0.17293811]
[1704080786219,0.02,42310.0,42309.0,0.23809811]
[1704080787310,0.011,42310.0,42309.0,0.23809811]
[1704080787525,0.2067,42319.0,42311.0,0.09868289]
[1704080787778,0.23321711,42318.0,42311.0,0.09868289]
[1704080787997,0.12574478,42323.0,42315.0,0.09868289]
[1704080788222,0.23453422,42322.0,42316.0,0.57131289]
[1704080788452,0.23321711,42322.0,42316.0,0.63791289]
[1704080788667,0.23321711,42322.0,42317.0,0.06162]
[1704080788887,0.23321711,42322.0,42308.0,0.056511]
[1704080788888,0.00131711,42314.0,42308.0,0.597934]
[1704080789141,0.00131711,42314.0,42307.0,0.40651811]
[1704080789142,0.23321711,42313.0,42307.0,0.40651811]
[1704080789368,0.23321711,42313.0,42307.0,0.17293811]
[1704080790870,0.23921711,42313.0,42307.0,0.17293811]
[1704080791081,0.23321711,42313.0,42307.0,0.17293811]
[1704080791540,0.23821711,42313.0,42307.0,0.17293811]
[1704080791744,0.24121711,42313.0,42307.0,0.17293811]
[1704080792167,0.23321711,42313.0,42307.0,0.17293811]
[1704080792382,0.37640914,42313.0,42305.0,0.64569411]
[1704080792597,0.00131711,42309.0,42303.0,0.1857]
[1704080792812,0.23321711,42308.0,42302.0,0.17293811]
[1704080793027,0.23321711,42308.0,42300.0,0.04704545]
[1704080793028,0.00131711,42307.0,42300.0,0.00084545]
[1704080793230,0.00131711,42307.0,42301.0,0.01838454]
[1704080793231,0.23453422,42306.0,42301.0,0.01838454]
[1704080794792,0.23321711,42306.0,42301.0,0.01838454]
[1704080794996,0.01,42311.0,42302.0,0.24727811]
[1704080795223,0.23321711,42310.0,42302.0,0.24727811]
[1704080795479,0.023,42306.0,42303.0,0.0672]
[1704080795894,0.011,42306.0,42303.0,0.0672]
[1704080796108,0.011,42306.0,42305.0,0.09868289]
[1704080796535,0.013,42311.0,42306.0,0.17293811]
[1704080796788,0.013,42311.0,42307.0,0.17293811]
[1704080796789,0.011,42310.0,42307.0,0.17293811]
[1704080797009,0.013,42311.0,42308.0,0.02571181]
[1704080797215,0.013,42311.0,42308.0,0.07497181]
[1704080797424,0.00131711,42314.0,42308.0,0.07497181]
[1704080797425,0.01131711,42314.0,42308.0,0.07497181]
[1704080797637,0.23321711,42313.0,42308.0,0.02571181]
[1704080798485,0.011,42310.0,42308.0,0.02571181]
[1704080798694,0.011,42310.0,42309.0,0.02447899]
[1704080799127,0.006,42310.0,42309.0,0.02447899]
[1704080799561,0.008,42311.0,42309.0,0.02447899]
[1704080800413,0.23321711,42313.0,42309.0,0.02447899]
[1704080800669,0.004,42310.0,42309.0,0.02547899]
[1704080800878,0.004,42310.0,42309.0,0.02447899]
[1704080800879,0.006,42310.0,42309.0,0.02447899]
[1704080801327,0.005,42311.0,42309.0,0.02547899]
[1704080801547,0.24421711,42313.0,42310.0,0.01984171]
[1704080801760,0.24421711,42313.0,42305.0,0.57143989]
[1704080801987,0.23321711,42313.0,42305.0,0.57143989]
[1704080802204,0.23321711,42313.0,42305.0,0.62231989]
[1704080802429,0.006,42310.0,42307.0,0.17293811]
[1704080803510,0.23321711,42313.0,42307.0,0.17293811]
[1704080803711,0.24121711,42313.0,42307.0,0.17293811]
[1704080804132,0.23321711,42313.0,42307.0,0.21835811]
[1704080804344,0.004,42310.0,42307.0,0.21935811]
[1704080804547,0.24421711,42313.0,42308.0,0.0462]
[1704080804757,0.2183,42315.0,42308.0,0.14488289]
[1704080804991,0.23321711,42314.0,42308.0,0.14488289]
[1704080805194,0.011,42313.0,42309.0,0.05814]
[1704080805632,0.011,42313.0,42309.0,0.23107811]
[1704080805851,0.011,42313.0,42312.0,0.17293811]
[1704080806062,0.011,42313.0,42312.0,0.64561711]
[1704080806270,0.011,42313.0,42312.0,0.85201711]
[1704080806479,0.009,42313.0,42312.0,0.85201711]
[1704080806688,0.2096,42319.0,42315.0,0.09868289]
[1704080806933,0.01,42324.0,42318.0,0.17293811]
[1704080807117,0.2096,42323.0,42318.0,0.17293811]
[1704080807332,0.23321711,42324.0,42319.0,0.09202981]
[1704080807573,0.2096,42323.0,42319.0,0.09202981]
[1704080807779,0.2096,42323.0,42320.0,0.04788]
[1704080808211,0.2096,42323.0,42321.0,0.17293811]
[1704080808429,0.2186,42323.0,42321.0,0.17293811]
[1704080808642,0.2186,42323.0,42322.0,0.02894805]
[1704080808873,0.2186,42323.0,42322.0,0.08540805]
[1704080809541,0.2096,42323.0,42322.0,0.08540805]
[1704080809768,0.2166,42323.0,42322.0,0.08640805]
[1704080809998,0.2286,42323.0,42322.0,0.08640805]
[1704080810233,0.2166,42323.0,42322.0,0.08640805]
[1704080810665,0.2256,42323.0,42322.0,0.08640805]
[1704080813521,0.2256,42323.0,42322.0,0.001]
[1704080813654,0.45881711,42323.0,42322.0,0.001]
[1704080816512,0.2256,42323.0,42322.0,0.001]
[1704080823339,0.016,42323.0,42322.0,0.001]
[1704080823548,0.016,42323.0,42322.0,0.06052]
[1704080825623,0.016,42323.0,42322.0,0.04678]
[1704080825864,0.016,42323.0,42322.0,0.001]
[1704080825865,0.24921711,42323.0,42322.0,0.001]
[1704080830065,0.016,42323.0,42322.0,0.001]
[1704080830505,0.016,42323.0,42322.0,0.07174]
[1704080831804,0.016,42323.0,42322.0,0.05458]
[1704080832608,0.016,42323.0,42322.0,0.001]
[1704080833302,0.24921711,42323.0,42322.0,0.001]
[1704080843932,0.016,42323.0,42322.0,0.001]
[1704080844355,0.016,42323.0,42322.0,0.08116]
[1704080845659,0.016,42323.0,42322.0,0.553727]
[1704080845873,0.016,42323.0,42322.0,0.83220511]
[1704080846088,0.016,42323.0,42322.0,1.22155856]
[1704080846297,0.016,42323.0,42322.0,1.22164367]
[1704080846498,0.016,42323.0,42322.0,1.10844255]
[1704080846724,0.007,42323.0,42322.0,0.74908409]
[1704080846939,0.007,42323.0,42322.0,1.22165109]
[1704080847148,0.013,42323.0,42322.0,1.19335111]
[1704080847393,0.013,42323.0,42322.0,0.81157367]
[1704080847601,0.007,42323.0,42322.0,1.08832759]
[1704080847827,0.2258,42330.0,42324.0,0.17293811]
[1704080848040,0.45901711,42330.0,42324.0,0.22955266]
[1704080848266,0.45901711,42330.0,42325.0,0.06864]
[1704080848896,0.45901711,42330.0,42325.0,0.12525455]
[1704080849361,0.46601711,42330.0,42326.0,0.0663]
[1704080849573,0.45901711,42330.0,42326.0,0.0663]
[1704080849798,0.2258,42330.0,42326.0,0.0663]
[1704080850024,0.2318,42330.0,42326.0,0.12291455]
[1704080850253,0.2398,42330.0,42326.0,0.12291455]
[1704080850470,0.2398,42330.0,42327.0,0.08004]
[1704080850687,0.2318,42330.0,42327.0,0.78210066]
[1704080850909,0.006,42330.0,42328.0,0.09868289]
[1704080851119,0.014,42330.0,42328.0,0.17266289]
[1704080851332,0.014,42330.0,42329.0,0.07338]
[1704080851549,0.008,42330.0,42329.0,0.24631811]
[1704080851790,0.014,42330.0,42329.0,0.24631811]
[1704080852036,0.018,42339.0,42335.0,0.17293811]
[1704080852037,0.008,42339.0,42335.0,0.17293811]
[1704080852274,0.008,42339.0,42329.0,1.09387576]
[1704080852275,0.008,42339.0,42338.0,0.78692273]
[1704080852490,0.008,42339.0,42338.0,1.02932027]
[1704080852716,0.008,42339.0,42338.0,1.11164027]
[1704080852948,0.008,42339.0,42338.0,0.72764611]
[1704080853131,0.008,42339.0,42338.0,0.04644]
[1704080853132,0.16792571,42339.0,42338.0,0.04644]
[1704080853383,0.01,42339.0,42338.0,0.06773951]
[1704080853611,0.011,42339.0,42338.0,0.02189951]
[1704080854277,0.011,42339.0,42335.0,0.06644]
[1704080854521,0.011,42339.0,42335.0,0.16512289]
[1704080854742,0.011,42339.0,42336.0,0.05814]
[1704080855844,0.009,42339.0,42336.0,0.05814]
[1704080856248,0.008,42339.0,42336.0,0.05814]
[1704080856736,0.012,42339.0,42336.0,0.05814]
[1704080856947,0.008,42339.0,42336.0,0.05814]
[1704080857369,0.009,42339.0,42336.0,0.06214]
[1704080857576,0.014,42339.0,42338.0,0.001]
[1704080858015,0.009,42339.0,42336.0,0.06214]
[1704080858436,0.009,42339.0,42336.0,0.06414]
[1704080858648,0.009,42339.0,42336.0,0.53655]
[1704080858862,0.009,42339.0,42338.0,0.472388]
[1704080859335,0.008,42339.0,42338.0,0.547868]
[1704080859548,0.008,42339.0,42338.0,0.82274611]
[1704080859760,0.009,42339.0,42338.0,0.85962611]
[1704080860206,0.009,42339.0,42338.0,1.62180961]
[1704080860432,0.009,42339.0,42338.0,2.24275661]
[1704080860662,0.2188,42352.0,42347.0,0.17293811]
[1704080860873,0.13667027,42354.0,42347.0,0.64522411]
[1704080861102,0.2188,42352.0,42348.0,0.08094]
[1704080862184,0.2188,42352.0,42348.0,0.06036]
[1704080862416,0.2358,42352.0,42348.0,0.06136]
[1704080863350,0.2508,42352.0,42348.0,0.06236]
[1704080864908,0.12829152,42351.0,42348.0,0.06236]
[1704080865345,0.12829152,42351.0,42348.0,0.002]
[1704080865557,0.48533422,42352.0,42349.0,0.0468]
[1704080865772,0.48533422,42352.0,42348.0,0.002]
[1704080865977,0.48533422,42352.0,42348.0,0.001]
[1704080866198,0.47033422,42352.0,42348.0,0.001]
[1704080866414,0.014,42351.0,42348.0,0.002]
[1704080866634,0.014,42351.0,42348.0,0.001]
[1704080866850,0.45333422,42352.0,42346.0,0.06792]
[1704080866985,0.016,42351.0,42348.0,0.002]
[1704080867197,0.016,42351.0,42348.0,0.001]
[1704080867678,0.014,42351.0,42348.0,0.001]
[1704080868059,0.46733422,42352.0,42346.0,0.06892]
[1704080868742,0.45333422,42352.0,42346.0,0.06792]
[1704080869397,0.006,42351.0,42348.0,0.001]
[1704080869890,0.45333422,42352.0,42346.0,0.06792]
[1704080870154,0.007,42351.0,42348.0,0.001]
[1704080870597,0.005,42351.0,42348.0,0.001]
[1704080870809,0.012,42351.0,42348.0,0.002]
[1704080871100,0.012,42351.0,42348.0,0.001]
[1704080871101,0.007,42351.0,42348.0,0.001]
[1704080871751,0.2248,42352.0,42350.0,0.09868289]
[1704080871987,0.2248,42352.0,42350.0,0.57093789]
[1704080872229,0.006,42352.0,42351.0,0.07002]
[1704080872669,0.0261,42353.0,42351.0,0.07002]
[1704080872882,0.0261,42353.0,42352.0,0.02973205]
[1704080873317,0.0261,42353.0,42352.0,0.08451205]
[1704080873974,0.0341,42353.0,42352.0,0.08451205]
[1704080874170,0.40679566,42353.0,42352.0,0.02973205]
[1704080874438,0.40679566,42353.0,42351.0,0.002]
[1704080874439,0.40679566,42353.0,42351.0,0.001]
[1704080874667,0.48899389,42352.0,42351.0,0.001]
[1704080874895,0.48899389,42352.0,42342.0,0.09868289]
[1704080874896,0.49899389,42352.0,42344.0,0.04884]
[1704080875108,0.2091,42351.0,42343.0,0.0585]
[1704080875327,0.00131711,42349.0,42345.0,0.06867781]
[1704080875540,0.00131711,42349.0,42345.0,0.02217781]
[1704080875541,0.23453422,42349.0,42345.0,0.02217781]
[1704080875754,0.10131711,42346.0,42345.0,0.02217781]
[1704080875963,0.33453422,42346.0,42339.0,0.16360289]
[1704080876178,0.227,42345.0,42340.0,0.05052]
[1704080876607,0.227,42345.0,42338.0,0.16462289]
[1704080876836,0.227,42345.0,42338.0,0.06594]
[1704080877076,0.227,42345.0,42339.0,0.17086289]
[1704080877324,0.227,42345.0,42339.0,0.17286289]
[1704080877614,0.228,42345.0,42340.0,0.0708]
[1704080877849,0.227,42345.0,42340.0,0.0648]
[1704080878089,0.227,42345.0,42341.0,0.05628]
[1704080878090,0.46121711,42345.0,42341.0,0.05628]
[1704080878328,0.46121711,42345.0,42338.0,0.005]
[1704080878329,0.46221711,42345.0,42340.0,0.04986]
[1704080878575,0.46221711,42345.0,42342.0,0.0465]
[1704080878809,0.46221711,42345.0,42341.0,0.05388]
[1704080879056,0.46221711,42345.0,42340.0,0.0555]
[1704080879287,0.46221711,42345.0,42339.0,0.06318]
[1704080879520,0.46021711,42345.0,42339.0,0.16186289]
[1704080879770,0.46821711,42345.0,42340.0,0.06658]
[1704080880026,0.46521711,42345.0,42340.0,0.06658]
[1704080880277,0.00131711,42343.0,42340.0,0.06558]
[1704080880508,0.00131711,42343.0,42335.0,0.15724289]
[1704080880509,0.33453422,42342.0,42335.0,0.15724289]
[1704080880744,0.14200935,42341.0,42339.0,0.001]
[1704080880992,0.35940935,42341.0,42339.0,0.001]
[1704080881231,0.35940935,42341.0,42335.0,0.15250289]
[1704080881465,0.35940935,42341.0,42340.0,0.001]
[1704080882812,0.35940935,42341.0,42335.0,0.0519]
[1704080883243,0.35940935,42341.0,42339.0,0.004]
[1704080883689,0.2174,42341.0,42335.0,0.15058289]
[1704080883936,0.2174,42341.0,42340.0,0.003]
[1704080884158,0.2174,42341.0,42336.0,0.05898]
[1704080884603,0.2224,42341.0,42339.0,0.001]
[1704080884836,0.2174,42341.0,42336.0,0.05898]
[1704080885113,0.2174,42341.0,42336.0,0.08676]
[1704080885294,0.2174,42341.0,42337.0,0.07932]
[1704080885757,0.2174,42341.0,42336.0,0.07933]
[1704080886024,0.2174,42341.0,42338.0,0.06468]
[1704080886250,0.2174,42341.0,42337.0,0.06732]
[1704080886251,0.2244,42341.0,42337.0,0.06732]
[1704080886472,0.2244,42341.0,42339.0,0.05076]
[1704080886683,0.2244,42341.0,42338.0,0.01670729]